[Event "Kvibergspelen 2018"]
[Site "Prioritet Serneke Arena, Krutvagen 2, Gothenburg, Sweden"]
[Date "2018.04.21"]
[Round "5.19"]
[White "Ask, Josef"]
[Black "Bergre, Joachim"]
[Result "0-1"]
[TimeControl "15 minutes + 5 seconds per move from move one (Round 1 - 4) / 90 minutes + 30 seconds per move from move one (Round 5 - 8)"]
[WhiteTitle "FM"]
[WhiteFideId "1704583"]
[BlackFideId "1704893"]
[WhiteElo "2173"]
[BlackElo "1974"]

1. d4 {[%clk 01:30:46]} {[%emt 00:00:13]} Nf6 {[%clk 01:27:46]} {[%emt
00:03:15]} 2. c4 {[%clk 01:31:02]} {[%emt 00:00:13]} c5 {[%clk 01:27:48]}
{[%emt 00:00:29]} 3. d5 {[%clk 01:31:13]} {[%emt 00:00:19]} b5 {[%clk
01:27:54]} {[%emt 00:00:24]} 4. cxb5 {[%clk 01:31:29]} {[%emt 00:00:13]} a6
{[%clk 01:28:10]} {[%emt 00:00:13]} 5. bxa6 {[%clk 01:31:37]} {[%emt 00:00:23]}
g6 {[%clk 01:28:28]} {[%emt 00:00:12]} 6. Nc3 {[%clk 01:31:52]} {[%emt
00:00:16]} Bxa6 {[%clk 01:28:42]} {[%emt 00:00:16]} 7. e4 {[%clk 01:31:57]}
{[%emt 00:00:25]} Bxf1 {[%clk 01:28:35]} {[%emt 00:00:36]} 8. Kxf1 {[%clk
01:32:19]} {[%emt 00:00:09]} d6 {[%clk 01:28:25]} {[%emt 00:00:39]} 9. Nf3
{[%clk 01:32:23]} {[%emt 00:00:26]} Bg7 {[%clk 01:28:25]} {[%emt 00:00:30]} 10.
g3 {[%clk 01:32:25]} {[%emt 00:00:28]} Nfd7 {[%clk 01:26:35]} {[%emt 00:02:23]}
11. Kg2 {[%clk 01:28:46]} {[%emt 00:04:06]} Nb6 {[%clk 01:26:06]} {[%emt
00:00:59]} 12. Qe2 {[%clk 01:26:22]} {[%emt 00:02:53]} O-O {[%clk 01:24:36]}
{[%emt 00:02:01]} 13. h4 {[%clk 01:23:41]} {[%emt 00:03:11]} h5 {[%clk
01:21:25]} {[%emt 00:03:41]} 14. Ng5 {[%clk 01:20:26]} {[%emt 00:03:46]} N8d7
{[%clk 01:11:33]} {[%emt 00:10:22]} 15. g4 {[%clk 01:15:34]} {[%emt 00:05:21]}
Nf6 {[%clk 01:05:48]} {[%emt 00:06:16]} 16. gxh5 {[%clk 01:14:39]} {[%emt
00:01:25]} Nxh5 {[%clk 01:06:02]} {[%emt 00:00:16]} 17. f4 {[%clk 01:14:23]}
{[%emt 00:00:47]} Na4 {[%clk 01:00:49]} {[%emt 00:05:42]} 18. Nd1 {[%clk
01:06:50]} {[%emt 00:08:03]} Qc8 {[%clk 00:58:00]} {[%emt 00:03:19]} 19. Rh3
{[%clk 01:02:05]} {[%emt 00:05:15]} Qa6 {[%clk 00:55:11]} {[%emt 00:03:18]} 20.
Qc2 {[%clk 00:56:41]} {[%emt 00:05:55]} Nb6 {[%clk 00:45:18]} {[%emt 00:10:23]}
21. Rf3 {[%clk 00:52:17]} {[%emt 00:04:52]} Qc4 {[%clk 00:43:28]} {[%emt
00:02:21]} 22. Rf2 {[%clk 00:51:01]} {[%emt 00:01:46]} Rfb8 {[%clk 00:41:21]}
{[%emt 00:02:37]} 23. a3 {[%clk 00:48:08]} {[%emt 00:03:23]} Qxc2 {[%clk
00:33:14]} {[%emt 00:08:36]} 24. Rxc2 {[%clk 00:48:32]} {[%emt 00:00:07]} Na4
{[%clk 00:33:32]} {[%emt 00:00:12]} 25. Nf3 {[%clk 00:44:18]} {[%emt 00:04:44]}
Rb3 {[%clk 00:30:33]} {[%emt 00:03:29]} 26. Ra2 {[%clk 00:43:58]} {[%emt
00:00:49]} Rab8 {[%clk 00:29:40]} {[%emt 00:01:24]} 27. Nf2 {[%clk 00:33:27]}
{[%emt 00:11:01]} Bxb2 {[%clk 00:27:49]} {[%emt 00:02:20]} 28. Bd2 {[%clk
00:33:04]} {[%emt 00:00:53]} Bg7 {[%clk 00:25:20]} {[%emt 00:02:59]} 29. Bc1
{[%clk 00:27:45]} {[%emt 00:05:50]} Nc3 {[%clk 00:23:44]} {[%emt 00:02:06]} 30.
Rab2 {[%clk 00:26:55]} {[%emt 00:01:20]} Nxf4+ {[%clk 00:22:46]} {[%emt
00:01:27]} 31. Kf1 {[%clk 00:25:33]} {[%emt 00:01:53]} Rxb2 {[%clk 00:16:43]}
{[%emt 00:06:33]} 32. Bxb2 {[%clk 00:25:28]} {[%emt 00:00:35]} Ncxd5 {[%clk
00:16:33]} {[%emt 00:00:40]} 33. Nd1 {[%clk 00:25:06]} {[%emt 00:00:52]} Nc7
{[%clk 00:13:40]} {[%emt 00:03:23]} 34. e5 {[%clk 00:25:04]} {[%emt 00:00:32]}
Nd3 {[%clk 00:13:26]} {[%emt 00:00:44]} 35. exd6 {[%clk 00:25:11]} {[%emt
00:00:24]} exd6 {[%clk 00:13:44]} {[%emt 00:00:12]} 36. Bxg7 {[%clk 00:25:17]}
{[%emt 00:00:24]} Kxg7 {[%clk 00:14:09]} {[%emt 00:00:05]} 37. a4 {[%clk
00:23:39]} {[%emt 00:02:09]} Nd5 {[%clk 00:12:57]} {[%emt 00:01:42]} 38. Rd2
{[%clk 00:23:25]} {[%emt 00:00:44]} N5f4 {[%clk 00:12:06]} {[%emt 00:01:20]} 39.
a5 {[%clk 00:23:29]} {[%emt 00:00:26]} Ra8 {[%clk 00:12:11]} {[%emt 00:00:25]}
40. Ra2 {[%clk 00:23:53]} {[%emt 00:00:06]} d5 {[%clk 00:11:40]} {[%emt
00:01:00]} 41. Nc3 {[%clk 00:24:00]} {[%emt 00:00:23]} Nb4 {[%clk 00:11:35]}
{[%emt 00:00:35]} 42. Ra4 {[%clk 00:24:07]} {[%emt 00:00:23]} Nfd3 {[%clk
00:11:50]} {[%emt 00:00:15]} 43. Nb5 {[%clk 00:23:48]} {[%emt 00:00:49]} Nb2
{[%clk 00:10:57]} {[%emt 00:01:23]} 44. Ra1 {[%clk 00:22:48]} {[%emt 00:01:30]}
Nc4 {[%clk 00:11:14]} {[%emt 00:00:12]} 45. Re1 {[%clk 00:21:40]} {[%emt
00:01:38]} Rxa5 {[%emt 00:00:19]} 46. Nc7 {[%clk 00:22:06]} {[%emt 00:00:04]}
Ra3 {[%clk 00:11:31]} {[%emt 00:00:26]} 47. Ng5 {[%clk 00:22:06]} {[%emt
00:00:30]} Ne3+ {[%clk 00:11:24]} {[%emt 00:00:36]} 48. Kg1 {[%clk 00:22:13]}
{[%emt 00:00:24]} d4 {[%clk 00:10:58]} {[%emt 00:00:55]} 49. Ne4 {[%clk
00:22:09]} {[%emt 00:00:33]} Nd3 {[%clk 00:10:40]} {[%emt 00:00:49]} 50. Rb1
{[%clk 00:22:10]} {[%emt 00:00:29]} Ra2 {[%clk 00:08:36]} {[%emt 00:02:33]} 51.
Ne8+ {[%clk 00:21:26]} {[%emt 00:01:15]} Kf8 {[%clk 00:08:38]} {[%emt
00:00:28]} 52. Rb8 {[%clk 00:20:49]} {[%emt 00:01:07]} Rg2+ {[%clk 00:08:10]}
{[%emt 00:00:57]} 53. Kh1 {[%clk 00:21:15]} {[%emt 00:00:04]} Nf2 {[%clk
00:08:23]} {[%emt 00:00:15]} 54. Nxf2 {[%clk 00:21:42]} {[%emt 00:00:06]} Rxf2
{[%clk 00:08:50]} {[%emt 00:00:03]} 55. Nd6+ {[%clk 00:21:31]} {[%emt
00:00:41]} Ke7 {[%clk 00:08:18]} {[%emt 00:01:02]} 56. Ne4 {[%clk 00:21:46]}
{[%emt 00:00:15]} Rf1 {[%clk 00:07:44]} {[%emt 00:01:04]} 57. Kh2 {[%clk
00:22:09]} {[%emt 00:00:08]} c4 {[%clk 00:07:33]} {[%emt 00:00:41]} 58. Rb7+
{[%clk 00:22:26]} {[%emt 00:00:14]} Ke6 {[%clk 00:07:25]} {[%emt 00:00:37]} 59.
Ng5+ {[%clk 00:22:37]} {[%emt 00:00:19]} Kd5 {[%clk 00:07:13]} {[%emt
00:00:41]} 60. Rd7+ {[%clk 00:22:37]} {[%emt 00:00:30]} Kc5 {[%clk 00:07:01]}
{[%emt 00:00:42]} 61. Ne4+ {[%clk 00:22:58]} {[%emt 00:00:08]} Kb4 {[%clk
00:05:40]} {[%emt 00:01:51]} 62. Rxd4 {[%clk 00:23:10]} {[%emt 00:00:19]} f5
{[%clk 00:05:38]} {[%emt 00:00:31]} 63. Nd2 {[%clk 00:22:26]} {[%emt 00:01:13]}
Rf2 {[%clk 00:05:57]} {[%emt 00:00:12]} 64. Kg1 {[%clk 00:22:45]} {[%emt
00:00:12]} Rg2+ {[%clk 00:06:04]} {[%emt 00:00:23]} 65. Kh1 {[%clk 00:23:10]}
{[%emt 00:00:05]} Kc3 {[%clk 00:06:27]} {[%emt 00:00:07]} 66. Nf3 {[%clk
00:23:14]} {[%emt 00:00:26]} Rg4 {[%clk 00:06:09]} {[%emt 00:00:48]} 67. Rd6
{[%clk 00:23:12]} {[%emt 00:00:32]} Rf4 {[%clk 00:06:01]} {[%emt 00:00:38]} 68.
Ne5 {[%clk 00:22:25]} {[%emt 00:01:17]} Rxh4 {[%clk 00:06:11]} {[%emt
00:00:20]} 69. Kg1 {[%clk 00:22:52]} {[%emt 00:00:03]} g5 {[%clk 00:06:20]}
{[%emt 00:00:21]} 70. Rg6 {[%clk 00:23:09]} {[%emt 00:00:13]} g4 {[%clk
00:06:19]} {[%emt 00:00:31]} 71. Kf2 {[%clk 00:23:25]} {[%emt 00:00:14]} f4
{[%clk 00:06:20]} {[%emt 00:00:29]} 72. Rf6 {[%clk 00:23:36]} {[%emt 00:00:19]}
Rh2+ {[%clk 00:05:55]} {[%emt 00:00:54]} 73. Kg1 {[%clk 00:23:36]} {[%emt
00:00:32]} Rg2+ {[%clk 00:06:16]} {[%emt 00:00:08]} 74. Kh1 {[%clk 00:24:01]}
{[%emt 00:00:05]} Rf2 {[%clk 00:06:23]} {[%emt 00:00:22]} 75. Ng6 {[%clk
00:23:11]} {[%emt 00:01:21]} Rf1 {[%clk 00:05:48]} {[%emt 00:01:04]} 76. Kh2
{[%clk 00:23:37]} {[%emt 00:00:05]} g3 {[%clk 00:06:10]} {[%emt 00:00:08]} 0-1

[Event "Kvibergspelen 2018"]
[Site "Prioritet Serneke Arena, Krutvagen 2, Gothenburg, Sweden"]
[Date "2018.04.21"]
[Round "5.20"]
[White "Wengholm, Anders"]
[Black "Petersson, Baldur Teodor"]
[Result "1-0"]
[TimeControl "15 minutes + 5 seconds per move from move one (Round 1 - 4) / 90 minutes + 30 seconds per move from move one (Round 5 - 8)"]
[BlackTitle "CM"]
[WhiteFideId "1704818"]
[BlackFideId "2309157"]
[WhiteElo "2158"]
[BlackElo "2003"]

1. Nf3 {[%clk 01:30:52]} {[%emt 00:00:07]} Nf6 {[%clk 01:29:25]} {[%emt
00:01:36]} 2. c4 {[%clk 01:30:21]} {[%emt 00:01:01]} g6 {[%clk 01:29:44]}
{[%emt 00:00:11]} 3. Nc3 {[%clk 01:30:34]} {[%emt 00:00:17]} Bg7 {[%clk
01:30:07]} {[%emt 00:00:07]} 4. e4 {[%clk 01:30:39]} {[%emt 00:00:25]} d6
{[%clk 01:30:31]} {[%emt 00:00:06]} 5. d4 {[%clk 01:31:06]} {[%emt 00:00:04]}
O-O {[%clk 01:30:48]} {[%emt 00:00:12]} 6. Be2 {[%clk 01:31:31]} {[%emt
00:00:05]} e5 {[%clk 01:31:10]} {[%emt 00:00:08]} 7. O-O {[%clk 01:29:57]}
{[%emt 00:02:04]} Nbd7 {[%clk 01:30:49]} {[%emt 00:00:51]} 8. Be3 {[%clk
01:27:27]} {[%emt 00:03:00]} c6 {[%clk 01:30:15]} {[%emt 00:01:04]} 9. Qc2
{[%clk 01:24:35]} {[%emt 00:03:23]} Qc7 {[%clk 01:26:24]} {[%emt 00:04:20]} 10.
d5 {[%clk 01:18:44]} {[%emt 00:06:21]} c5 {[%clk 01:25:57]} {[%emt 00:00:57]}
11. Ne1 {[%clk 01:18:14]} {[%emt 00:01:00]} a6 {[%clk 01:24:38]} {[%emt
00:01:50]} 12. a3 {[%clk 01:18:11]} {[%emt 00:00:33]} Rb8 {[%clk 01:23:59]}
{[%emt 00:01:09]} 13. Rb1 {[%clk 01:18:19]} {[%emt 00:00:23]} Ne8 {[%clk
01:16:16]} {[%emt 00:08:12]} 14. f3 {[%clk 01:16:10]} {[%emt 00:02:39]} f5
{[%clk 01:13:54]} {[%emt 00:02:52]} 15. b4 {[%clk 01:10:35]} {[%emt 00:06:06]}
f4 {[%clk 01:06:44]} {[%emt 00:07:40]} 16. Bf2 {[%clk 01:10:38]} {[%emt
00:00:26]} b6 {[%clk 01:05:39]} {[%emt 00:01:35]} 17. Nd3 {[%clk 01:10:20]}
{[%emt 00:00:48]} Rb7 {[%clk 01:02:24]} {[%emt 00:03:45]} 18. Rfc1 {[%clk
00:54:13]} {[%emt 00:16:37]} Ndf6 {[%clk 00:58:20]} {[%emt 00:04:33]} 19. bxc5
{[%clk 00:43:11]} {[%emt 00:11:33]} bxc5 {[%clk 00:56:41]} {[%emt 00:02:09]} 20.
Be1 {[%clk 00:36:21]} {[%emt 00:07:20]} Rf7 {[%clk 00:53:16]} {[%emt 00:03:55]}
21. Bd1 {[%clk 00:35:09]} {[%emt 00:01:43]} Qb8 {[%clk 00:50:56]} {[%emt
00:02:50]} 22. Qa4 {[%clk 00:33:27]} {[%emt 00:02:12]} Rxb1 {[%clk 00:50:42]}
{[%emt 00:00:44]} 23. Rxb1 {[%clk 00:33:55]} {[%emt 00:00:02]} Rb7 {[%clk
00:51:01]} {[%emt 00:00:11]} 24. Rxb7 {[%clk 00:31:55]} {[%emt 00:02:29]} Qxb7
{[%clk 00:51:29]} {[%emt 00:00:03]} 25. Qa5 {[%clk 00:32:07]} {[%emt 00:00:17]}
Kf7 {[%clk 00:47:15]} {[%emt 00:04:43]} 26. Bc2 {[%clk 00:28:31]} {[%emt
00:04:07]} Bf8 {[%clk 00:46:01]} {[%emt 00:01:43]} 27. Na4 {[%clk 00:28:37]}
{[%emt 00:00:25]} Be7 {[%clk 00:45:12]} {[%emt 00:01:18]} 28. Naxc5 {[%clk
00:21:51]} {[%emt 00:07:17]} dxc5 {[%clk 00:40:14]} {[%emt 00:05:28]} 29. Nxe5+
{[%clk 00:21:52]} {[%emt 00:00:29]} Kf8 {[%clk 00:39:42]} {[%emt 00:01:02]} 30.
Nd3 {[%clk 00:18:31]} {[%emt 00:03:51]} Nd7 {[%clk 00:37:29]} {[%emt 00:02:43]}
31. e5 {[%clk 00:16:49]} {[%emt 00:02:13]} Qb6 {[%clk 00:34:34]} {[%emt
00:03:25]} 32. Qd2 {[%clk 00:14:06]} {[%emt 00:03:12]} g5 {[%clk 00:33:53]}
{[%emt 00:01:10]} 33. Bf2 {[%clk 00:10:10]} {[%emt 00:04:27]} Ng7 {[%clk
00:32:09]} {[%emt 00:02:14]} 34. h4 {[%clk 00:07:48]} {[%emt 00:02:52]} h6
{[%clk 00:31:08]} {[%emt 00:01:31]} 35. e6 {[%clk 00:08:00]} {[%emt 00:00:17]}
Nxe6 {[%clk 00:30:44]} {[%emt 00:00:54]} 36. dxe6 {[%clk 00:08:25]} {[%emt
00:00:06]} Qxe6 {[%clk 00:31:06]} {[%emt 00:00:07]} 37. Ba4 {[%clk 00:07:23]}
{[%emt 00:01:33]} Qf5 {[%clk 00:25:27]} {[%emt 00:06:08]} 38. Bxd7 {[%clk
00:02:46]} {[%emt 00:05:08]} Bxd7 {[%clk 00:25:25]} {[%emt 00:00:32]} 39. Qc3
{[%clk 00:02:58]} {[%emt 00:00:18]} Kg8 {[%clk 00:24:40]} {[%emt 00:01:15]} 40.
hxg5 {[%clk 00:03:08]} {[%emt 00:00:19]} hxg5 {[%clk 00:25:08]} {[%emt
00:00:02]} 41. Qb3 {[%clk 00:02:22]} {[%emt 00:01:17]} Be6 {[%clk 00:23:33]}
{[%emt 00:02:04]} 42. Qb8+ {[%clk 00:02:14]} {[%emt 00:00:39]} Kg7 {[%clk
00:22:33]} {[%emt 00:01:30]} 43. Qc7 {[%clk 00:02:28]} {[%emt 00:00:16]} Kf6
{[%clk 00:21:20]} {[%emt 00:01:42]} 44. Bxc5 {[%clk 00:02:10]} {[%emt
00:00:50]} Bxc5+ {[%clk 00:17:08]} {[%emt 00:04:42]} 45. Nxc5 {[%clk 00:02:28]}
{[%emt 00:00:11]} Qb1+ {[%clk 00:17:33]} {[%emt 00:00:05]} 46. Kh2 {[%clk
00:02:47]} {[%emt 00:00:11]} Qe1 {[%clk 00:17:52]} {[%emt 00:00:11]} 47. Qd8+
{[%clk 00:01:54]} {[%emt 00:01:23]} Kf7 {[%clk 00:13:02]} {[%emt 00:05:20]} 48.
Qxg5 {[%clk 00:01:40]} {[%emt 00:00:44]} Qc1 {[%clk 00:13:25]} {[%emt
00:00:07]} 49. Qh5+ {[%clk 00:01:30]} {[%emt 00:00:40]} Ke7 {[%clk 00:13:41]}
{[%emt 00:00:13]} 50. Qe5 {[%clk 00:00:55]} {[%emt 00:01:06]} Qxc4 {[%clk
00:14:04]} {[%emt 00:00:07]} 51. Qxe6+ {[%clk 00:01:18]} {[%emt 00:00:08]} Qxe6
{[%clk 00:14:27]} {[%emt 00:00:07]} 52. Nxe6 {[%clk 00:01:41]} {[%emt
00:00:06]} Kxe6 {[%clk 00:14:54]} {[%emt 00:00:03]} 53. g4 {[%clk 00:01:54]}
{[%emt 00:00:18]} fxg3 {[%clk 00:15:18]} {[%emt 00:00:06]} 54. Kxg3 {[%clk
00:02:22]} {[%emt 00:00:01]} Kf5 {[%clk 00:15:37]} {[%emt 00:00:11]} 55. a4
{[%clk 00:02:48]} {[%emt 00:00:05]} Kg5 {[%clk 00:15:10]} {[%emt 00:00:57]} 56.
a5 {[%clk 00:03:10]} {[%emt 00:00:08]} Kf5 {[%clk 00:15:34]} {[%emt 00:00:06]}
57. f4 {[%clk 00:03:36]} {[%emt 00:00:05]} Kf6 {[%clk 00:15:50]} {[%emt
00:00:13]} 58. Kg4 {[%clk 00:04:00]} {[%emt 00:00:05]} Kg6 {[%clk 00:16:19]}
{[%emt 00:00:02]} 59. f5+ {[%clk 00:04:24]} {[%emt 00:00:06]} Kf6 {[%clk
00:16:35]} {[%emt 00:00:14]} 60. Kf4 {[%clk 00:04:46]} {[%emt 00:00:08]} Kf7
{[%clk 00:17:01]} {[%emt 00:00:04]} 61. Ke5 {[%clk 00:05:00]} {[%emt 00:00:16]}
Ke7 {[%clk 00:17:29]} {[%emt 00:00:02]} 62. Kd5 {[%clk 00:05:03]} {[%emt
00:00:27]} 1-0

[Event "Kvibergspelen 2018"]
[Site "Prioritet Serneke Arena, Krutvagen 2, Gothenburg, Sweden"]
[Date "2018.04.21"]
[Round "6.1"]
[White "Hector, Jonny"]
[Black "Blomqvist, Erik"]
[Result "0-1"]
[TimeControl "15 minutes + 5 seconds per move from move one (Round 1 - 4) / 90 minutes + 30 seconds per move from move one (Round 5 - 8)"]
[WhiteTitle "GM"]
[BlackTitle "GM"]
[WhiteFideId "1700090"]
[BlackFideId "1709437"]
[WhiteElo "2502"]
[BlackElo "2494"]

1. e4 {[%clk 01:29:25]} {[%emt 00:01:33]} c5 {[%clk 01:30:16]} {[%emt
00:00:46]} 2. Nf3 {[%clk 01:29:46]} {[%emt 00:00:08]} e6 {[%clk 01:30:40]}
{[%emt 00:00:07]} 3. d4 {[%clk 01:30:06]} {[%emt 00:00:09]} cxd4 {[%clk
01:31:05]} {[%emt 00:00:05]} 4. Nxd4 {[%clk 01:30:29]} {[%emt 00:00:06]} Nc6
{[%clk 01:31:28]} {[%emt 00:00:08]} 5. Nc3 {[%clk 01:30:23]} {[%emt 00:00:36]}
a6 {[%clk 01:31:44]} {[%emt 00:00:15]} 6. Nxc6 {[%clk 01:27:04]} {[%emt
00:03:48]} bxc6 {[%clk 01:31:49]} {[%emt 00:00:26]} 7. Bd3 {[%clk 01:27:26]}
{[%emt 00:00:07]} d5 {[%clk 01:32:09]} {[%emt 00:00:11]} 8. Qe2 {[%clk
01:26:59]} {[%emt 00:00:56]} Nf6 {[%clk 01:28:29]} {[%emt 00:04:10]} 9. O-O
{[%clk 01:25:24]} {[%emt 00:02:04]} Bb7 {[%clk 01:27:27]} {[%emt 00:01:33]} 10.
Bd2 {[%clk 01:17:02]} {[%emt 00:09:53]} Be7 {[%clk 01:26:27]} {[%emt 00:00:29]}
11. Rae1 {[%clk 01:16:51]} {[%emt 00:00:40]} Qc7 {[%clk 01:13:10]} {[%emt
00:13:49]} 12. e5 {[%clk 01:12:30]} {[%emt 00:04:50]} Nd7 {[%clk 01:13:32]}
{[%emt 00:00:08]} 13. Qg4 {[%clk 01:12:21]} {[%emt 00:00:38]} g6 {[%clk
01:08:42]} {[%emt 00:05:21]} 14. Bh6 {[%clk 01:03:20]} {[%emt 00:09:30]} Nxe5
{[%clk 01:00:47]} {[%emt 00:08:26]} 15. Qd4 {[%clk 00:51:07]} {[%emt 00:12:41]}
f6 {[%clk 00:53:32]} {[%emt 00:07:47]} 16. Qh4 {[%clk 00:42:17]} {[%emt
00:09:20]} Kf7 {[%clk 00:47:43]} {[%emt 00:06:19]} 17. Be2 {[%clk 00:40:51]}
{[%emt 00:01:56]} Rae8 {[%clk 00:42:00]} {[%emt 00:06:14]} 18. Kh1 {[%clk
00:37:22]} {[%emt 00:03:58]} Nd7 {[%clk 00:41:16]} {[%emt 00:01:14]} 19. Qh3
{[%clk 00:36:51]} {[%emt 00:01:00]} f5 {[%clk 00:39:58]} {[%emt 00:01:49]} 20.
Nb1 {[%clk 00:35:15]} {[%emt 00:02:06]} Nf6 {[%clk 00:32:44]} {[%emt 00:07:45]}
21. Nd2 {[%clk 00:35:02]} {[%emt 00:00:43]} Ng8 {[%clk 00:31:43]} {[%emt
00:01:31]} 22. Be3 {[%clk 00:31:47]} {[%emt 00:03:44]} Bf6 {[%clk 00:30:23]}
{[%emt 00:01:50]} 23. Bc5 {[%clk 00:29:21]} {[%emt 00:02:55]} e5 {[%clk
00:28:01]} {[%emt 00:02:54]} 24. Qa3 {[%clk 00:26:20]} {[%emt 00:03:30]} h5
{[%clk 00:27:41]} {[%emt 00:00:50]} 25. c4 {[%clk 00:25:17]} {[%emt 00:01:33]}
Nh6 {[%clk 00:25:13]} {[%emt 00:02:59]} 26. Rc1 {[%clk 00:23:47]} {[%emt
00:01:59]} d4 {[%clk 00:21:34]} {[%emt 00:04:09]} 27. Bd6 {[%clk 00:21:46]}
{[%emt 00:02:31]} Qd7 {[%clk 00:22:01]} {[%emt 00:00:04]} 28. c5 {[%clk
00:22:01]} {[%emt 00:00:15]} Kg7 {[%clk 00:22:20]} {[%emt 00:00:12]} 29. Nc4
{[%clk 00:22:08]} {[%emt 00:00:23]} Nf7 {[%clk 00:22:23]} {[%emt 00:00:27]} 30.
Na5 {[%clk 00:18:44]} {[%emt 00:03:53]} Bc8 {[%clk 00:20:51]} {[%emt 00:02:02]}
31. Bd1 {[%clk 00:17:10]} {[%emt 00:02:03]} Rd8 {[%clk 00:17:55]} {[%emt
00:03:26]} 32. Nc4 {[%clk 00:16:27]} {[%emt 00:01:13]} Qa7 {[%clk 00:17:45]}
{[%emt 00:00:41]} 33. f4 {[%clk 00:14:06]} {[%emt 00:02:49]} e4 {[%clk
00:17:53]} {[%emt 00:00:22]} 34. Ba4 {[%clk 00:13:20]} {[%emt 00:01:16]} d3
{[%clk 00:15:24]} {[%emt 00:03:00]} 35. Bxc6 {[%clk 00:12:37]} {[%emt
00:01:13]} Be6 {[%clk 00:14:46]} {[%emt 00:01:09]} 36. Ba4 {[%clk 00:09:56]}
{[%emt 00:03:10]} Bxc4 {[%clk 00:11:48]} {[%emt 00:03:26]} 37. Rxc4 {[%clk
00:10:22]} {[%emt 00:00:05]} Nxd6 {[%clk 00:11:22]} {[%emt 00:00:57]} 38. cxd6
{[%clk 00:10:44]} {[%emt 00:00:07]} Qb6 {[%clk 00:10:01]} {[%emt 00:01:52]} 39.
d7 {[%clk 00:10:05]} {[%emt 00:01:09]} Qxb2 {[%clk 00:09:14]} {[%emt 00:01:17]}
40. Qd6 {[%clk 00:09:26]} {[%emt 00:01:08]} Qxa2 {[%clk 00:09:08]} {[%emt
00:00:37]} 41. Rc6 {[%clk 00:09:21]} {[%emt 00:00:35]} Rhf8 {[%clk 00:08:41]}
{[%emt 00:00:58]} 42. Rxa6 {[%clk 00:09:09]} {[%emt 00:00:42]} Ra8 {[%clk
00:07:04]} {[%emt 00:02:06]} 43. Rxa8 {[%clk 00:05:33]} {[%emt 00:04:06]} Rxa8
{[%clk 00:07:33]} {[%emt 00:00:02]} 44. Bc6 {[%clk 00:03:48]} {[%emt 00:02:14]}
Rd8 {[%clk 00:05:54]} {[%emt 00:02:10]} 45. h3 {[%clk 00:01:59]} {[%emt
00:02:18]} h4 {[%clk 00:05:11]} {[%emt 00:01:13]} 46. Rg1 {[%clk 00:01:11]}
{[%emt 00:01:18]} Qf2 {[%clk 00:04:56]} {[%emt 00:00:46]} 47. Rb1 {[%clk
00:00:46]} {[%emt 00:00:55]} d2 {[%clk 00:03:34]} {[%emt 00:01:52]} 48. Kh2
{[%clk 00:00:36]} {[%emt 00:00:40]} Qg3 {[%clk 00:03:54]} {[%emt 00:00:09]} 0-1